bitfinex/quotes_ETHUSD_20251011
["timestamp","ask_amount","ask_price","bid_price","bid_amount"]
[1760151080970,0.13683463,3861.8,3861.3,0.8939]
[1760151081272,0.60063463,3861.8,3861.3,0.2603]
[1760151081566,0.13683463,3861.8,3861.3,0.2603]
[1760151081925,0.13683463,3861.8,3861.0,0.2603]
[1760151082272,0.65472787,3861.8,3861.0,0.2603]
[1760151082638,0.13683463,3861.8,3861.0,0.2603]
[1760151082950,0.13683463,3861.8,3860.7,0.2603]
[1760151083735,0.13683463,3861.8,3861.1,0.2603]
[1760151085870,0.13683463,3861.8,3861.4,0.8939]
[1760151086077,0.13683463,3861.8,3861.4,1.1542]
[1760151086373,0.13683463,3861.8,3861.4,0.8939]
[1760151087862,0.13683463,3861.8,3860.7,0.2603]
[1760151088270,0.13683463,3861.8,3861.3,0.2603]
[1760151088569,0.13683463,3861.8,3861.5,0.2603]
[1760151089164,0.13683463,3861.8,3860.1,0.002]
[1760151089165,0.13683463,3861.8,3861.7,0.8939]
[1760151089858,0.13683463,3861.8,3861.7,0.2603]
[1760151091568,0.13683463,3861.8,3861.7,0.8939]
[1760151091978,0.13683463,3861.8,3861.7,1.1542]
[1760151092346,0.001,3861.8,3861.7,1.1542]
[1760151092886,0.1288,3861.7,3860.8,0.2603]
[1760151093067,0.4409,3861.6,3860.8,0.2603]
[1760151093443,0.51794973,3861.4,3860.8,0.2603]
[1760151093752,0.4409,3861.3,3860.8,0.2603]
[1760151093936,0.001,3861.8,3860.6,0.2603]
[1760151093937,0.1288,3860.8,3860.6,0.2603]
[1760151094142,0.1288,3860.6,3860.1,0.002]
[1760151094368,0.4409,3861.4,3860.1,0.002]
[1760151095952,0.4409,3861.4,3860.8,0.002]
[1760151101178,0.51805286,3860.7,3860.4,0.002]
[1760151101377,0.95884986,3861.4,3860.4,0.002]
[1760151101378,0.51805509,3860.6,3860.4,0.002]
[1760151101679,0.4409,3860.6,3860.4,0.002]
[1760151101856,0.4409,3860.5,3860.4,0.002]
[1760151102061,0.95887606,3861.2,3860.4,0.002]
[1760151102258,0.4409,3861.2,3860.4,0.002]
[1760151103780,0.4409,3861.7,3860.5,0.2603]
[1760151104366,0.1288,3860.5,3860.4,0.002]
[1760151106563,0.4409,3860.5,3860.4,0.002]
[1760151107475,0.9589676,3860.5,3860.4,0.002]
[1760151107890,0.4409,3860.5,3860.4,0.002]
[1760151116969,0.001,3860.8,3860.4,0.002]
[1760151117398,0.428,3860.7,3860.4,0.002]
[1760151117600,0.428,3860.6,3860.4,0.002]
[1760151117798,0.001,3860.8,3860.4,0.002]
[1760151117799,0.428,3860.5,3860.4,0.002]
[1760151120269,0.428,3860.5,3859.7,0.002]
[1760151120471,0.2152,3859.8,3856.7,0.2603]
[1760151120905,0.428,3859.7,3856.7,0.2603]
[1760151121407,0.6336,3859.6,3856.0,0.2623]
[1760151121586,0.96009205,3859.6,3856.0,0.2623]
[1760151121781,0.6336,3859.4,3856.0,0.2623]
[1760151121981,0.6336,3859.2,3856.0,0.2623]
[1760151122188,0.2139,3856.9,3856.0,0.002]
[1760151122599,0.4495,3856.8,3856.0,0.002]
[1760151123269,0.4495,3856.8,3855.0,0.2945]
[1760151123469,0.2139,3855.1,3855.0,0.2945]
[1760151123675,0.6634,3855.1,3855.0,0.1587]
[1760151124793,0.5073589,3856.8,3855.0,0.1587]
[1760151124794,0.4495,3855.6,3855.0,0.1587]
[1760151124999,0.2139,3856.9,3855.1,0.6336]
[1760151125000,0.4495,3856.2,3855.1,0.6336]
[1760151126506,0.1358666,3856.1,3855.1,0.6336]
[1760151126870,0.4495,3856.0,3855.1,0.6336]
[1760151127581,0.1358666,3856.1,3855.3,0.6336]
[1760151128098,0.1358666,3856.1,3855.5,0.6336]
[1760151128274,0.1358666,3856.1,3855.5,0.22673879]
[1760151128470,0.1296,3855.5,3855.4,0.2763]
[1760151128715,0.1296,3855.5,3855.0,0.1587]
[1760151128907,0.1358666,3856.1,3855.1,0.2763]
[1760151130376,0.1358666,3856.1,3855.2,0.6336]
[1760151130803,0.1358666,3856.1,3855.4,0.6336]
[1760151131106,0.1358666,3856.1,3855.5,0.30223697]
[1760151131310,0.1358666,3856.1,3855.6,0.6336]
[1760151131607,0.1296,3855.5,3855.4,0.6336]
[1760151131808,0.1296,3855.5,3855.4,0.9099]
[1760151132118,0.1296,3855.5,3855.1,0.6336]
[1760151132317,0.1358666,3856.1,3855.4,0.2763]
[1760151132918,0.4495,3861.1,3855.5,0.02592828]
[1760151133211,0.13577491,3858.0,3855.6,0.1404]
[1760151133575,0.2139,3859.0,3855.6,0.1404]
[1760151133782,0.13576818,3858.4,3855.7,0.86493094]
[1760151134009,0.4495,3859.2,3855.8,0.1404]
[1760151134423,0.13576762,3858.3,3855.8,0.1404]
[1760151134592,0.4495,3859.2,3855.9,0.6336]
[1760151134792,0.4495,3859.2,3856.1,0.6336]
[1760151135004,0.2139,3859.5,3856.3,0.6336]
[1760151135005,0.13576766,3858.2,3856.3,0.6336]
[1760151135217,0.4495,3859.7,3856.5,0.6336]
[1760151135397,1.21418545,3861.6,3856.7,0.6336]
[1760151135398,0.6634,3860.2,3856.7,0.6336]
[1760151135721,0.001,3861.6,3856.9,0.6336]
[1760151135722,0.13574098,3859.4,3856.9,0.6336]
[1760151135922,0.2139,3860.6,3857.1,0.6336]
[1760151136227,0.13572557,3859.8,3857.3,0.6336]
[1760151136521,0.1296,3857.0,3856.7,0.6336]
[1760151136725,0.13572645,3859.7,3856.7,0.6336]
[1760151137219,0.13572645,3859.7,3856.9,0.6336]
[1760151137429,0.13572645,3859.7,3857.1,0.6336]
[1760151137626,0.1296,3856.8,3856.7,0.6336]
[1760151137794,0.1296,3857.0,3856.7,0.6336]
[1760151138126,0.13572645,3859.7,3856.9,0.6336]
[1760151138491,0.13572645,3859.7,3857.1,0.6336]
[1760151138836,0.13572645,3859.7,3857.4,0.2603]
[1760151138994,0.001,3861.6,3856.6,0.4495]
[1760151138995,0.001,3861.6,3857.7,0.8939]
[1760151139198,0.001,3861.6,3857.5,0.1404]
[1760151139199,0.001,3861.6,3858.1,0.8939]
[1760151139608,0.1288,3858.1,3857.9,0.6336]
[1760151139810,0.4495,3861.5,3857.7,0.6336]
[1760151140026,0.4495,3861.5,3858.0,0.6336]
[1760151140547,0.4495,3861.5,3858.1,0.0047]
[1760151141138,0.4495,3861.0,3858.1,0.0047]
[1760151141628,0.001,3861.6,3858.1,0.0047]
[1760151141629,0.4495,3860.7,3858.1,0.0047]
[1760151142609,0.4495,3861.3,3858.1,0.0047]
[1760151143444,0.001,3861.6,3858.2,0.0161655]
[1760151143742,0.001,3861.6,3859.1,0.2603]
[1760151143921,0.001,3861.6,3859.6,0.6336]
[1760151144120,0.001,3861.6,3860.2,0.8939]
[1760151144311,0.001,3861.6,3860.3,0.02085669]
[1760151144737,0.001,3861.6,3860.4,0.0047]
[1760151144942,0.1288,3860.4,3860.2,0.8939]
[1760151145145,0.001,3861.6,3860.2,0.8939]
[1760151145606,0.001,3861.6,3860.3,0.0047]
[1760151145807,0.1288,3860.2,3859.8,0.0047]
[1760151146038,0.001,3861.6,3859.9,0.0047]
[1760151147539,0.001,3861.6,3859.1,0.0047]
[1760151147540,0.4495,3861.4,3859.1,0.0047]
[1760151147849,0.4495,3861.4,3859.7,0.0047]
[1760151148139,0.001,3861.6,3859.7,0.0047]
[1760151148344,0.4505,3861.6,3859.7,0.0047]
[1760151149453,0.001,3861.6,3859.7,0.0047]
[1760151150254,0.001,3861.6,3859.8,0.6336]
[1760151150420,0.001,3861.6,3860.4,0.6336]
[1760151150624,0.001,3861.6,3860.8,0.8939]
[1760151151059,0.001,3861.6,3860.9,0.0037]
[1760151151260,0.001,3861.6,3861.0,0.0037]
[1760151151464,0.001,3861.6,3861.1,0.0037]
[1760151155180,0.001,3861.6,3860.6,0.0037]
[1760151155679,0.001,3861.6,3860.3,0.2603]
[1760151155680,0.4545,3861.1,3860.3,0.2603]
[1760151156384,0.4545,3861.1,3858.6,0.0037]
[1760151156583,0.1288,3859.3,3858.6,0.0037]
[1760151156788,0.4545,3861.1,3858.6,0.0037]
[1760151156995,0.4545,3860.7,3858.6,0.264]
[1760151157149,0.4545,3860.7,3858.8,0.2603]
[1760151157547,0.4545,3860.7,3859.5,0.6336]
[1760151157788,0.44291511,3860.7,3859.5,0.6336]
[1760151158672,0.44291511,3860.7,3859.1,0.6336]
[1760151159686,0.44291511,3860.7,3858.1,0.2623]
[1760151159894,0.44291511,3860.7,3859.0,0.6489]
[1760151160089,0.44291511,3860.7,3859.3,0.2603]
[1760151160292,0.4545,3860.6,3859.2,0.6336]
[1760151160494,0.4545,3860.6,3859.3,0.2603]
[1760151160665,0.001,3861.6,3859.4,0.9092]
[1760151161185,0.001,3861.6,3859.5,0.0153]
[1760151161792,0.001,3861.6,3859.6,0.0153]
[1760151162307,0.001,3861.6,3859.7,0.8939]
[1760151162457,0.001,3861.6,3859.8,0.0153]
[1760151162657,0.254377,3860.8,3859.8,0.0153]
[1760151163954,0.254377,3860.8,3859.8,0.2756]
[1760151164156,0.254377,3860.8,3859.9,0.0153]
[1760151164396,0.254377,3860.8,3860.5,0.6336]
[1760151164585,0.254377,3860.8,3860.7,0.8939]
[1760151164977,0.254377,3860.8,3860.7,0.9092]
[1760151165607,0.001,3861.6,3860.7,0.9092]
[1760151165763,0.001,3861.6,3860.8,0.0143]
[1760151168616,0.001,3861.6,3860.7,0.8939]
[1760151171384,0.001,3861.6,3860.7,0.9082]
[1760151171701,0.001,3861.6,3860.7,0.8939]
[1760151172294,0.001,3861.6,3860.8,0.0143]
[1760151172485,0.001,3861.6,3860.9,0.8939]
[1760151172687,0.001,3861.6,3861.1,0.8939]
[1760151173089,0.001,3861.6,3861.2,0.0143]
[1760151173392,0.001,3861.6,3861.1,0.8939]
[1760151174724,0.001,3861.6,3861.1,0.9082]
[1760151174887,0.001,3861.6,3861.2,0.0143]
[1760151175087,0.001,3861.6,3861.1,0.8939]
[1760151175521,0.001,3861.6,3861.2,0.2603]
[1760151175897,0.4421,3861.5,3861.2,0.2603]
[1760151176501,0.4421,3861.5,3860.0,0.0143]
[1760151176912,0.4421,3861.5,3860.0,0.2746]
[1760151177297,0.001,3861.6,3860.0,0.2746]
[1760151177932,0.001,3861.6,3860.4,0.2603]
[1760151178527,0.001,3861.6,3860.6,0.8939]
[1760151179205,0.001,3861.6,3861.2,0.2603]
[1760151180109,0.001,3861.6,3861.3,0.2603]
[1760151180992,0.001,3861.6,3861.5,0.8939]
[1760151181816,0.001,3861.6,3861.5,0.9082]
[1760151182020,0.001,3861.6,3861.5,0.8939]
[1760151183020,0.001,3861.6,3861.5,0.2603]
[1760151183449,0.001,3861.6,3861.5,0.8939]
[1760151183735,0.001,3862.4,3862.3,0.8939]
[1760151183898,0.10657195,3869.0,3863.0,0.6336]
[1760151183899,0.6856,3864.8,3863.0,0.6336]
[1760151184094,1.19273497,3864.8,3863.2,0.8939]
[1760151184630,0.4667,3864.7,3863.2,0.8939]
[1760151185004,0.4667,3864.6,3862.4,0.0103]
[1760151185893,0.4667,3864.6,3862.2,0.2603]
[1760151186324,0.4667,3864.6,3862.3,0.2603]
[1760151186525,0.13557565,3864.5,3862.3,0.2603]
[1760151186738,0.13557565,3864.5,3862.4,0.9042]
[1760151186936,0.4667,3864.4,3862.4,0.2603]
[1760151187230,0.4667,3864.4,3862.6,0.2603]
[1760151187547,0.4667,3864.4,3863.3,0.6336]
[1760151187748,0.13557565,3864.5,3863.3,0.6336]
[1760151187911,0.13557565,3864.5,3863.6,0.2603]
[1760151188106,0.13557565,3864.5,3863.7,0.8939]
[1760151188648,0.13557565,3864.5,3863.0,0.0103]
[1760151188649,0.13557565,3864.5,3863.5,0.6336]
[1760151188944,0.13557565,3864.5,3863.6,0.0103]
[1760151189811,0.13557565,3864.5,3864.1,0.8939]
[1760151190009,0.13557565,3864.5,3864.2,0.0103]
[1760151190213,0.13557565,3864.5,3864.3,0.0103]
[1760151190452,0.13557565,3864.5,3864.4,0.0103]
[1760151191409,0.13557565,3864.5,3864.4,0.9042]
[1760151193506,0.13557565,3864.5,3864.4,0.0103]
[1760151194251,0.13557565,3864.5,3864.1,0.6336]
[1760151194497,0.13557565,3864.5,3863.1,0.0103]
[1760151197539,0.13557565,3864.5,3863.1,0.6439]
[1760151197981,0.13557565,3864.5,3863.2,0.65948527]
[1760151198149,0.13557565,3864.5,3863.2,0.29648527]
[1760151198466,0.13557565,3864.5,3863.3,0.0103]
[1760151198668,0.13557565,3864.5,3863.6,0.8939]
[1760151198871,0.13557565,3864.5,3863.7,0.0103]
[1760151199481,0.13557565,3864.5,3863.6,0.8939]
[1760151199847,0.13557565,3864.5,3863.3,0.0103]
[1760151200390,0.13557565,3864.5,3860.6,0.002]
[1760151200391,0.13557565,3864.5,3863.0,0.0103]
[1760151200884,0.13557565,3864.5,3863.0,0.2706]
[1760151201069,0.13557565,3864.5,3863.4,0.2603]
[1760151201747,0.13557565,3864.5,3863.5,0.9043]
[1760151202080,0.13557565,3864.5,3863.6,0.0104]
[1760151203050,0.13557565,3864.5,3863.5,0.8939]
[1760151203252,0.1288,3863.6,3863.5,0.8939]
[1760151203492,0.1288,3863.6,3863.5,0.9043]
[1760151203844,0.1288,3863.6,3863.5,0.8939]
[1760151204046,0.13557565,3864.5,3863.5,0.2603]
[1760151204678,0.4667,3864.4,3862.4,0.0104]
[1760151204854,0.13557565,3864.5,3862.4,0.0104]
[1760151205667,0.13557565,3864.5,3862.4,0.0124]
[1760151205869,0.13657565,3864.5,3863.6,0.2603]
[1760151206074,0.13657565,3864.5,3864.1,0.8939]
[1760151206277,0.13657565,3864.5,3864.2,0.0104]
[1760151206487,0.13657565,3864.5,3864.3,0.0104]
[1760151206682,0.13657565,3864.5,3864.4,0.0104]
[1760151206887,0.13657565,3864.5,3864.1,0.8939]
[1760151207792,0.13657565,3864.5,3863.3,0.0104]
[1760151208685,0.13657565,3864.5,3863.7,0.2603]
[1760151210578,0.13657565,3864.5,3864.3,0.2603]
[1760151210903,0.60327565,3864.5,3864.4,0.2603]
[1760151212006,0.60327565,3864.5,3863.0,0.0104]
[1760151212007,0.60327565,3864.5,3863.2,0.2603]
[1760151212509,0.13657565,3864.5,3864.0,0.2603]
[1760151212709,0.13657565,3864.5,3864.1,0.0104]
[1760151212884,0.13657565,3864.5,3864.0,0.2603]
[1760151213610,0.13657565,3864.5,3864.1,0.2603]
[1760151214583,0.1288,3864.1,3864.0,0.8939]
[1760151214910,0.13657565,3864.5,3864.0,0.8939]
[1760151215881,0.13657565,3864.5,3862.4,0.002]
[1760151216085,0.4439,3864.4,3862.4,0.002]
[1760151217886,0.4439,3864.4,3862.0,0.002]
[1760151217887,0.2371,3862.5,3862.0,0.002]
[1760151218489,0.4439,3862.8,3862.0,0.002]
[1760151219937,0.2371,3863.0,3862.0,0.002]
[1760151220339,0.4439,3862.9,3862.0,0.002]
[1760151223126,0.6336,3862.8,3862.0,0.002]
[1760151223519,0.6336,3862.6,3862.0,0.002]
[1760151224033,0.4439,3862.5,3862.0,0.002]
[1760151224732,0.4439,3862.4,3862.0,0.002]
[1760151225097,0.4439,3862.3,3862.0,0.002]
[1760151225494,0.4439,3862.2,3862.0,0.002]
[1760151225717,0.4439,3862.2,3861.6,0.002]
[1760151225917,0.2371,3861.7,3861.2,0.002]
[1760151226430,0.4439,3861.6,3861.2,0.002]
[1760151227030,0.4439,3861.5,3861.2,0.002]
[1760151227405,0.4439,3861.4,3861.2,0.002]
[1760151227823,0.2371,3861.7,3861.2,0.002]
[1760151228306,0.2371,3863.0,3861.2,0.002]
[1760151228307,0.4439,3862.7,3861.2,0.002]
[1760151228644,0.2371,3863.0,3861.4,0.6336]
[1760151229409,0.4439,3863.3,3861.9,0.6336]
[1760151229633,0.4554,3863.8,3861.9,0.65]
[1760151229808,0.4554,3863.8,3861.2,0.002]
[1760151229809,0.2371,3864.2,3862.0,0.0164]
[1760151230211,0.4554,3864.1,3862.0,0.0164]
[1760151230403,0.4554,3864.1,3861.2,0.002]
[1760151230602,0.4554,3864.1,3862.0,0.6336]
[1760151230922,0.4554,3864.0,3862.0,0.6336]
[1760151231127,0.4554,3863.9,3862.0,0.6336]
[1760151231323,0.4554,3863.8,3862.0,0.6336]
[1760151231527,0.4554,3863.7,3862.0,0.6336]
[1760151231832,0.4554,3863.6,3862.0,0.6336]
[1760151232000,0.4554,3863.5,3862.0,0.6336]
[1760151233597,0.4554,3863.4,3862.0,0.6336]
[1760151233809,0.1288,3862.0,3861.4,0.6336]
[1760151234004,0.4554,3862.6,3861.2,0.002]
[1760151234206,0.4554,3864.1,3861.2,0.002]
[1760151234403,0.4554,3862.5,3861.2,0.002]
[1760151234628,0.216,3861.3,3861.2,0.002]
[1760151235007,0.6714,3861.3,3861.2,0.002]
[1760151236108,0.216,3861.7,3861.2,0.002]
[1760151236512,0.4554,3861.6,3861.2,0.002]
[1760151237010,0.216,3861.7,3861.2,0.002]
[1760151237238,0.4554,3861.6,3861.2,0.002]
[1760151237743,0.4554,3861.5,3860.6,0.002]
[1760151242845,0.39180156,3861.4,3859.9,0.002]
[1760151243346,1.0796,3861.3,3858.6,0.002]
[1760151243648,1.47140156,3861.3,3858.6,0.002]
[1760151243953,1.47140156,3861.3,3859.8,0.002]
[1760151244113,0.2198,3859.9,3858.6,0.002]
[1760151244517,0.2198,3859.9,3857.3,0.002]
[1760151244518,0.446,3859.8,3857.3,0.002]
[1760151245616,1.92,3859.5,3857.3,0.002]
[1760151245817,0.2198,3857.9,3857.3,0.002]
[1760151246329,0.6658,3857.9,3857.3,0.002]
[1760151246655,1.19510984,3857.9,3857.3,0.002]
[1760151246941,0.2198,3859.9,3857.3,0.002]
[1760151247166,0.446,3857.9,3857.3,0.002]
[1760151247369,0.6658,3857.9,3857.3,0.002]
[1760151247575,0.446,3858.6,3857.3,0.002]
[1760151248572,0.2198,3857.9,3857.3,0.002]
[1760151249069,0.6658,3857.9,3857.3,0.002]
[1760151250734,0.6336,3857.8,3857.3,0.002]
[1760151250936,0.6336,3857.8,3855.1,0.002]
[1760151251169,0.446,3857.7,3855.1,0.002]
[1760151251379,0.446,3857.7,3855.2,0.0324]
[1760151251734,0.446,3857.7,3855.1,0.6356]
[1760151251934,0.446,3857.6,3855.1,0.6356]
[1760151252140,0.446,3857.5,3855.1,0.6356]
[1760151252385,0.446,3857.4,3855.1,0.6356]
[1760151252540,0.446,3857.3,3855.1,0.6356]
[1760151252740,0.446,3857.2,3855.1,0.002]
[1760151254740,0.2198,3855.2,3855.1,0.002]
[1760151255275,0.446,3855.9,3855.1,0.6356]
[1760151255983,0.446,3855.9,3855.1,0.002]
[1760151256641,0.13593373,3855.8,3855.1,0.002]
[1760151256840,0.13593373,3855.8,3854.4,0.002]
[1760151257076,0.446,3855.7,3854.4,0.002]
[1760151261175,3.748816,3855.5,3854.4,0.002]
[1760151261376,3.748816,3855.5,3854.2,1e-08]
[1760151261377,2.5536,3855.2,3854.2,1e-08]
[1760151261576,2.5536,3855.2,3851.1,0.1951]
[1760151261577,2.5536,3855.0,3851.7,0.1951]
[1760151261781,0.6336,3855.0,3851.7,0.1951]
[1760151262160,0.446,3854.9,3851.7,0.1951]
[1760151262350,0.446,3854.9,3849.5,1.92]
[1760151262351,0.42170448,3854.8,3851.2,0.1971]
[1760151262550,0.446,3854.9,3851.2,0.1971]
[1760151262892,0.446,3854.7,3851.3,0.6336]
[1760151263061,0.446,3854.6,3851.5,0.6336]
[1760151263263,0.446,3854.5,3851.7,0.6336]
[1760151263463,0.446,3854.4,3851.4,0.6336]
[1760151263669,0.446,3854.3,3851.6,0.6336]
[1760151263975,0.446,3854.2,3851.8,0.6336]
[1760151264151,0.446,3854.1,3851.8,0.6336]
[1760151264353,0.446,3854.0,3851.8,0.6336]
[1760151264567,0.446,3853.9,3851.8,0.6336]
[1760151264770,0.446,3853.8,3851.7,0.1971]
[1760151265294,0.446,3853.8,3851.8,0.6336]
[1760151265459,0.446,3853.7,3851.7,0.1971]
[1760151265654,0.446,3853.7,3851.8,0.6336]
[1760151266057,0.446,3853.6,3851.8,0.6336]
[1760151266872,0.2198,3855.1,3852.0,0.6336]
[1760151267176,0.446,3854.3,3852.2,0.6336]
[1760151267561,0.446,3854.2,3850.9,0.6336]
[1760151267758,0.446,3854.1,3851.1,0.6336]
[1760151267960,0.446,3854.7,3851.3,0.6336]
[1760151268162,0.446,3854.6,3851.5,0.6336]
[1760151268364,0.446,3854.5,3851.7,0.6336]
[1760151268598,0.446,3854.4,3852.1,0.8933]
[1760151268801,0.446,3854.4,3852.3,0.6336]
[1760151269084,0.446,3854.4,3852.5,0.6336]
[1760151269262,0.446,3854.4,3852.7,0.6336]
[1760151269462,0.446,3854.4,3852.9,0.6336]
[1760151269895,0.446,3854.4,3852.7,0.6336]
[1760151270318,0.2198,3855.1,3852.8,0.1971]
[1760151270506,0.6658,3855.1,3853.1,0.6336]
[1760151270839,0.13593373,3855.8,3853.3,0.6336]
[1760151270987,0.6658,3855.7,3853.4,0.1971]
[1760151271315,0.6658,3855.7,3851.1,1.27253113]
[1760151271316,0.35399621,3855.6,3852.8,0.6336]
[1760151271516,0.446,3855.5,3852.8,0.6336]
[1760151271718,0.446,3855.4,3852.2,0.1971]
[1760151271924,0.446,3855.4,3851.6,0.1971]
[1760151271925,0.6336,3855.3,3851.6,0.1971]
[1760151272239,0.6336,3855.1,3851.6,0.1971]
[1760151272392,0.441,3855.0,3851.6,0.1971]
[1760151273033,2.5536,3854.7,3851.1,0.1971]
[1760151273229,6.796704,3854.5,3850.8,0.1971]
[1760151273385,0.441,3854.4,3850.9,0.1971]
[1760151273790,0.441,3854.4,3851.0,0.6336]
[1760151273985,0.441,3854.3,3851.1,0.1971]
[1760151274225,0.6336,3854.2,3850.9,0.4568]
[1760151274420,0.6336,3854.0,3850.8,0.1971]
[1760151274717,0.441,3853.9,3850.8,0.1971]
[1760151274919,0.441,3853.9,3850.9,0.1971]
[1760151275124,0.441,3853.9,3851.0,0.6336]
[1760151275290,0.441,3853.8,3851.2,0.6336]
[1760151275617,0.441,3853.7,3851.4,0.6336]
[1760151275826,0.441,3853.6,3851.4,0.6336]
[1760151276123,0.441,3853.6,3851.6,0.6336]
[1760151276620,0.441,3853.6,3850.8,0.1971]
[1760151276621,0.441,3853.6,3851.8,0.6336]
[1760151276819,0.6336,3855.5,3850.9,0.6336]
[1760151277024,0.441,3853.5,3851.2,0.6336]
[1760151277196,0.441,3853.4,3851.2,0.6336]
[1760151277398,0.441,3853.3,3850.8,0.6539]
[1760151277602,0.441,3853.2,3850.8,0.6539]
[1760151277802,0.441,3853.1,3850.8,0.6539]
[1760151277998,0.441,3853.1,3851.0,0.6336]
[1760151278820,0.441,3853.1,3851.2,0.6336]
[1760151279021,0.441,3853.1,3851.4,0.6336]
[1760151279199,0.441,3853.8,3851.6,0.6336]
[1760151279522,0.441,3853.7,3851.6,0.6336]
[1760151279729,0.441,3853.6,3851.1,0.002]
[1760151280308,0.6336,3853.5,3851.1,0.002]
[1760151280837,0.35399621,3854.3,3851.1,0.002]
[1760151280838,0.441,3853.4,3851.1,0.002]
[1760151281402,0.6336,3853.3,3851.1,0.002]
[1760151281608,0.216,3851.2,3851.1,0.002]
[1760151282095,0.657,3851.2,3851.1,0.002]
[1760151282424,0.441,3851.2,3851.1,0.002]
[1760151282924,0.216,3851.5,3851.1,0.002]
[1760151283422,0.441,3851.4,3851.1,0.002]
[1760151283807,0.441,3851.3,3851.1,0.002]
[1760151284391,0.216,3851.5,3851.1,0.002]
[1760151284628,0.02,4361.0,3851.1,0.002]
[1760151284629,0.657,3852.0,3851.1,0.002]
[1760151285229,0.50733915,3852.2,3851.1,0.002]
[1760151285398,0.50733915,3852.2,3851.2,0.6336]
[1760151285599,0.50733915,3852.2,3851.3,0.02596524]
[1760151285800,0.216,3852.8,3851.3,0.02596524]
[1760151286101,0.216,3853.6,3851.5,0.6336]
[1760151286305,0.216,3853.6,3851.7,0.6336]
[1760151286717,0.13600366,3853.5,3851.7,0.49759492]
[1760151287128,0.13600366,3853.5,3851.8,0.1971]
[1760151288305,0.13600366,3853.5,3851.9,0.28566121]
[1760151288514,0.13600366,3853.5,3852.0,0.4568]
[1760151288716,0.13600366,3853.5,3852.2,0.6336]
[1760151288952,0.13600366,3853.5,3852.4,0.6336]
[1760151289359,0.13600366,3853.5,3851.1,0.002]
[1760151289360,0.1296,3852.4,3852.2,0.6336]
[1760151289663,0.13600366,3853.5,3851.1,0.002]
[1760151289850,0.1296,3852.2,3851.3,0.6336]
[1760151290024,0.13600366,3853.5,3851.4,0.1971]
[1760151291250,0.13600366,3853.5,3851.5,0.6336]
[1760151291431,0.13600366,3853.5,3851.1,0.002]
[1760151291631,0.13600366,3853.5,3851.7,0.6336]
[1760151291832,0.13600366,3853.5,3851.9,0.6336]
[1760151292258,0.13600366,3853.5,3852.1,0.6336]
[1760151292642,0.4719,3853.4,3851.4,0.6336]
[1760151292827,0.4719,3853.4,3851.3,0.1971]
[1760151293583,0.4719,3853.4,3851.4,0.6336]
[1760151293861,0.4719,3853.3,3851.1,0.002]
[1760151294047,0.13600366,3853.5,3851.4,0.1971]
[1760151294360,0.4719,3853.4,3852.0,0.6336]
[1760151294725,0.13600366,3853.5,3852.0,0.6336]
[1760151294726,0.4719,3853.3,3852.0,0.6336]
[1760151295143,0.4719,3853.2,3851.2,0.6336]
[1760151295357,0.4719,3853.1,3851.1,0.1991]
[1760151295758,0.4719,3853.1,3851.2,0.6336]
[1760151295974,0.13600366,3853.5,3851.2,0.6336]
[1760151296173,0.4719,3853.0,3851.2,0.6336]
[1760151296480,0.4719,3852.9,3851.1,0.002]
[1760151296961,0.4719,3852.9,3851.6,0.6336]
[1760151297550,0.13700366,3853.5,3851.3,0.6336]
[1760151297752,0.4719,3853.4,3851.5,0.6336]
[1760151297966,0.4719,3853.3,3851.5,0.6336]
[1760151298169,0.4719,3853.2,3851.5,0.6336]
[1760151298365,0.4719,3853.1,3851.5,0.6336]
[1760151298576,0.4719,3853.0,3851.1,0.002]
[1760151298878,0.4719,3853.0,3851.5,0.2597]
[1760151299478,0.4719,3853.0,3851.6,0.6336]
[1760151299652,0.4719,3852.9,3851.1,0.002]
[1760151301183,0.4719,3852.9,3851.3,0.2597]
[1760151301479,0.4719,3852.9,3851.5,0.2597]
[1760151302262,0.4719,3852.9,3851.1,0.002]
[1760151302463,0.1296,3851.4,3851.3,0.8933]
[1760151302662,0.4285,3852.9,3851.3,1.0904]
[1760151302865,0.4285,3852.9,3851.3,0.8933]
[1760151303180,0.4285,3852.8,3851.3,0.8933]
[1760151303386,0.4285,3852.7,3851.3,0.8933]
[1760151303600,0.4285,3852.6,3851.3,0.8933]
[1760151303819,0.4285,3852.5,3851.3,0.8933]
[1760151304580,0.4285,3853.4,3851.5,0.8933]
[1760151304781,0.13700366,3853.5,3851.7,0.8933]
[1760151305195,0.13700366,3853.5,3851.9,0.8933]
[1760151305605,0.13700366,3853.5,3852.1,0.8933]
[1760151306001,0.13700366,3853.5,3852.3,0.8933]
[1760151306470,0.13700366,3853.5,3852.5,0.8933]
[1760151306680,0.13700366,3853.5,3852.7,0.8933]
[1760151307234,0.13700366,3853.5,3852.9,0.8933]
[1760151307410,0.13700366,3853.5,3853.1,0.8933]
[1760151307908,0.13700366,3853.5,3853.3,0.8933]
[1760151308126,0.13700366,3853.5,3853.4,1.0904]
[1760151308717,0.13700366,3853.5,3852.9,0.1971]
[1760151309475,0.13700366,3853.5,3853.0,0.6336]
[1760151309705,0.13700366,3853.5,3853.2,0.6336]